[Event "5th EKA IIFL Investment 2019"]
[Site "Mumbai"]
[Date "2020.01.05"]
[Round "7.25"]
[White "Nitish Belurkar"]
[Black "Zysk, Robert"]
[Result "1/2-1/2"]
[ECO "C03"]
[WhiteElo "2294"]
[BlackElo "2409"]
[Annotator "NA"]
[PlyCount "82"]
[EventDate "2019.12.30"]
[EventType "swiss"]
[EventCountry "IND"]
[SourceTitle "playchess.com"]
[Source "ChessBase"]
[SourceQuality "1"]
[TimeControl "40/5400+30:1800+30"]

1. e4 {[%emt 0:00:00]} e6 {[%emt 0:00:00]} 2. d4 {[%emt 0:00:00]} d5 {[%emt 0:00:00]} 3. Nd2 {[%emt 0:00:00]} Be7 {[%emt 0:03:51]} 4. c3 {[%emt 0:01:08]} dxe4 {[%emt 0:04:24]} 5. Nxe4 {[%emt 0:00:08]} Nd7 {[%emt 0:00:23]} 6. Nf3 {[%emt 0:04:42]} Ngf6 {[%emt 0:01:09]} 7. Bd3 {[%emt 0:00:08]} c5 {[%emt 0:03:46]} 8. O-O {[%emt 0:07:37]} cxd4 {[%emt 0:05:05]} 9. Nxd4 {[%emt 0:04:15]} O-O {[%emt 0:08:27]} 10. Qe2 {[%emt 0:04:11]} Nxe4 {[%emt 0:21:44]} 11. Bxe4 {[%emt 0:03:21]} Nf6 {[%emt 0:04:38]} 12. Bf3 {[%emt 0:00:19]} a6 {[%emt 0:06:17]} 13. Bf4 {[%emt 0:09:36]} Bd6 {[%emt 0:01:18]} 14. Bg5 {[%emt 0:05:43]} Qc7 {[%emt 0:01:16]} 15. Bxf6 {[%emt 0:00:50]} gxf6 {[%emt 0:00:07]} 16. g3 {[%emt 0:00:10]} f5 {[%emt 0:05:45]} 17. Rad1 {[%emt 0:06:31]} Be5 {[%emt 0:01:42]} 18. Bg2 {[%emt 0:08:16]} Bg7 {[%emt 0:00:15]} 19. Qd2 {[%emt 0:00:31]} Rb8 {[%emt 0:01:22]} 20. a4 {[%emt 0:05:38]} Rd8 {[%emt 0:18:19]} 21. Qg5 {[%emt 0:17:17]} Bd7 {[%emt 0:00:41]} 22. Ra1 {[%emt 0:00:16]} b6 {[%emt 0:02:20]} 23. Rfd1 {[%emt 0:00:24]} Be8 {[%emt 0:00:54]} 24. Rd3 {[%emt 0:01:50]} h6 {[%emt 0:02:11]} 25. Qe3 {[%emt 0:01:31]} Qe5 {[%emt 0:02:31]} 26. Qd2 {[%emt 0:01:08]} Qf6 {[%emt 0:00:07]} 27. f4 {[%emt 0:02:27]} b5 {[%emt 0:00:57]} 28. axb5 {[%emt 0:01:25]} Bxb5 {[%emt 0:00:49]} 29. Nxb5 {[%emt 0:00:13]} Rxd3 {[%emt 0:01:00]} 30. Qxd3 {[%emt 0:00:03]} axb5 {[%emt 0:00:07]} 31. Qd6 {[%emt 0:01:52]} Qd8 {[%emt 0:01:14]} 32. Qxb8 {[%emt 0:00:37]} Qxb8 {[%emt 0:00:06]} 33. Ra8 {[%emt 0:00:02]} Qxa8 {[%emt 0:00:10]} 34. Bxa8 {[%emt 0:00:02]} Kf8 {[%emt 0:00:41]} 35. Kf2 {[%emt 0:00:20]} Ke7 {[%emt 0:00:37]} 36. Bc6 {[%emt 0:00:02]} b4 {[%emt 0:00:07]} 37. cxb4 {[%emt 0:00:04]} Bxb2 {[%emt 0:00:10]} 38. Kf3 {[%emt 0:00:11]} Ba3 {[%emt 0:00:23]} 39. b5 {[%emt 0:00:03]} Bc5 {[%emt 0:00:04]} 40. h3 {[%emt 0:00:00]} h5 {[%emt 0:00:00]} 41. Bb7 {[%emt 0:00:20]} Bb6 {[%emt 0:00:53]} 1/2-1/2

[Event "5th EKA IIFL Investment 2019"]
[Site "Mumbai"]
[Date "2020.01.05"]
[Round "7.32"]
[White "Lugovskoy, Maxim"]
[Black "Lokesh, N.."]
[Result "1-0"]
[ECO "A45"]
[WhiteElo "2453"]
[BlackElo "2264"]
[Annotator "ChessBase"]
[PlyCount "41"]
[EventDate "2019.12.30"]
[EventType "swiss"]
[EventCountry "IND"]
[SourceTitle "playchess.com"]
[Source "ChessBase"]
[SourceQuality "1"]
[TimeControl "40/5400+30:1800+30"]

1. d4 {[%emt 0:07:28]} Nf6 {[%emt 0:00:00]} 2. Nc3 {[%emt 0:00:05]} d5 {[%emt 0:00:00]} 3. Bf4 {[%emt 0:00:04]} e6 {[%emt 0:00:28]} 4. Nb5 {[%emt 0:00:04]} Na6 {[%emt 0:00:06]} 5. e3 {[%emt 0:00:03]} Be7 {[%emt 0:00:24]} 6. h3 {[%emt 0:00:12]} O-O {[%emt 0:00:52]} 7. Nf3 {[%emt 0:00:02]} c6 {[%emt 0:01:33]} 8. Nc3 {[%emt 0:00:05]} b6 {[%emt 0:00:05]} 9. Ne5 {[%emt 0:00:27]} Nb8 {[%emt 0:01:03]} 10. Bd3 {[%emt 0:09:51]} a5 {[%emt 0:04:51]} 11. O-O {[%emt 0:01:43]} Ba6 {[%emt 0:04:14]} 12. e4 {[%emt 0:02:33]} dxe4 {[%emt 0:19:58]} 13. Nxe4 {[%emt 0:00:23]} Nxe4 {[%emt 0:05:01]} 14. Bxe4 {[%emt 0:00:07]} Bxf1 {[%emt 0:00:05]} 15. Kxf1 {[%emt 0:00:07]} Bd6 {[%emt 0:00:03]} 16. Qf3 {[%emt 0:06:37]} Qc7 {[%emt 0:00:18]} 17. Qg3 {[%emt 0:07:51]} f6 {[%emt 0:03:44]} 18. Ng6 {[%emt 0:08:30]} Bxf4 {[%emt 0:00:55]} 19. Nxf4 {[%emt 0:00:03]} Qd6 {[%emt 0:02:53]} 20. Re1 {[%emt 0:00:28]} Re8 {[%emt 0:21:02]} 21. Bxh7+ {[%emt 0:00:11]} 1-0

[Event "5th EKA IIFL Investment 2019"]
[Site "Mumbai"]
[Date "2020.01.05"]
[Round "7.35"]
[White "Raahul V S"]
[Black "Bharat Kumar Reddy Poluri"]
[Result "1/2-1/2"]
[ECO "A14"]
[WhiteElo "2233"]
[BlackElo "2306"]
[Annotator "NA"]
[PlyCount "80"]
[EventDate "2019.12.30"]
[EventType "swiss"]
[EventCountry "IND"]
[SourceTitle "playchess.com"]
[Source "ChessBase"]
[SourceQuality "1"]
[TimeControl "40/5400+30:1800+30"]

1. c4 {[%emt 0:00:13]} e6 {[%emt 0:00:00]} 2. g3 {[%emt 0:00:11]} d5 {[%emt 0:00:00]} 3. Bg2 {[%emt 0:00:03]} Nf6 {[%emt 0:00:30]} 4. Nf3 {[%emt 0:00:05]} Be7 {[%emt 0:00:50]} 5. O-O {[%emt 0:00:09]} O-O {[%emt 0:00:03]} 6. d4 {[%emt 0:00:09]} dxc4 {[%emt 0:00:23]} 7. Qc2 {[%emt 0:00:03]} a6 {[%emt 0:01:15]} 8. a4 {[%emt 0:00:15]} Bd7 {[%emt 0:00:13]} 9. Qxc4 {[%emt 0:00:23]} Bc6 {[%emt 0:00:13]} 10. Bg5 {[%emt 0:00:20]} Nbd7 {[%emt 0:00:17]} 11. Nc3 {[%emt 0:00:28]} h6 {[%emt 0:01:31]} 12. Bxf6 {[%emt 0:00:20]} Nxf6 {[%emt 0:00:03]} 13. b4 {[%emt 0:00:08]} Bd5 {[%emt 0:09:30]} 14. Nxd5 {[%emt 0:00:03]} exd5 {[%emt 0:02:04]} 15. Qc3 {[%emt 0:01:09]} Qd6 {[%emt 0:01:24]} 16. Ne5 {[%emt 0:01:10]} Qxb4 {[%emt 0:10:11]} 17. Qxb4 {[%emt 0:00:17]} Bxb4 {[%emt 0:00:03]} 18. Rab1 {[%emt 0:00:10]} a5 {[%emt 0:02:00]} 19. Nd3 {[%emt 0:00:09]} Ra7 {[%emt 0:09:39]} 20. Nxb4 {[%emt 0:00:44]} axb4 {[%emt 0:00:02]} 21. Rxb4 {[%emt 0:00:04]} b6 {[%emt 0:01:05]} 22. Rc1 {[%emt 0:01:21]} Rfa8 {[%emt 0:03:29]} 23. e3 {[%emt 0:01:24]} Rxa4 {[%emt 0:02:23]} 24. Rxa4 {[%emt 0:00:14]} Rxa4 {[%emt 0:00:02]} 25. Rxc7 {[%emt 0:00:12]} Ra2 {[%emt 0:02:05]} 26. Rc8+ {[%emt 0:02:02]} Kh7 {[%emt 0:00:03]} 27. Bf3 {[%emt 0:00:08]} Rb2 {[%emt 0:05:12]} 28. Rd8 {[%emt 0:02:55]} Ne4 {[%emt 0:01:02]} 29. Bxe4+ {[%emt 0:02:08]} dxe4 {[%emt 0:00:02]} 30. Re8 {[%emt 0:00:16]} f5 {[%emt 0:00:22]} 31. g4 {[%emt 0:00:31]} fxg4 {[%emt 0:00:35]} 32. Rxe4 {[%emt 0:00:03]} h5 {[%emt 0:00:06]} 33. Kg2 {[%emt 0:00:47]} b5 {[%emt 0:00:47]} 34. d5 {[%emt 0:00:55]} Rd2 {[%emt 0:00:40]} 35. Re5 {[%emt 0:00:03]} Kg6 {[%emt 0:00:35]} 36. d6 {[%emt 0:00:37]} b4 {[%emt 0:00:24]} 37. Rb5 {[%emt 0:00:09]} Rxd6 {[%emt 0:00:08]} 38. Rxb4 {[%emt 0:00:02]} Rd5 {[%emt 0:00:27]} 39. Kg3 {[%emt 0:00:47]} Kg5 {[%emt 0:00:47]} 40. Kg2 {[%emt 0:00:00]} Ra5 {[%emt 0:00:00]} 1/2-1/2

[Event "5th EKA IIFL Investment 2019"]
[Site "Mumbai"]
[Date "2020.01.05"]
[Round "7.37"]
[White "Utsab Chatterjee"]
[Black "Sahoo, Utkal Ranjan"]
[Result "1-0"]
[ECO "C05"]
[WhiteElo "2142"]
[BlackElo "2348"]
[Annotator "NA RC"]
[PlyCount "105"]
[EventDate "2019.12.30"]
[EventType "swiss"]
[EventCountry "IND"]
[SourceTitle "playchess.com"]
[Source "ChessBase"]
[SourceQuality "1"]
[TimeControl "40/5400+30:1800+30"]

1. e4 {[%emt 0:00:00]} e6 {[%emt 0:00:00]} 2. d4 {[%emt 0:00:16]} d5 {[%emt 0:00:04]} 3. Nd2 {[%emt 0:00:16]} Nf6 {[%emt 0:00:21]} 4. e5 {[%emt 0:00:24]} Nfd7 {[%emt 0:00:11]} 5. c3 {[%emt 0:00:14]} c5 {[%emt 0:00:31]} 6. f4 {[%emt 0:00:11]} Nc6 {[%emt 0:00:09]} 7. Ndf3 {[%emt 0:00:06]} Qb6 {[%emt 0:00:19]} 8. g3 {[%emt 0:00:11]} cxd4 {[%emt 0:01:07]} 9. cxd4 {[%emt 0:00:06]} Be7 {[%emt 0:00:40]} 10. Bh3 {[%emt 0:01:19]} O-O {[%emt 0:00:59]} 11. Ne2 {[%emt 0:00:22]} f6 {[%emt 0:02:06]} 12. Rf1 {[%emt 0:00:20]} Kh8 {[%emt 0:06:18]} 13. b3 {[%emt 0:20:59]} a5 {[%emt 0:02:44]} 14. a3 {[%emt 0:00:27]} Bd8 {[%emt 0:10:49]} 15. Bb2 {[%emt 0:03:34]} Ne7 {[%emt 0:05:37]} 16. Rf2 {[%emt 0:02:50]} a4 {[%emt 0:01:26]} 17. b4 {[%emt 0:01:27]} Qa6 {[%emt 0:01:12]} 18. Nc3 {[%emt 0:03:20]} Nb6 {[%emt 0:02:11]} 19. Bf1 {[%emt 0:01:01]} Nc4 {[%emt 0:00:48]} 20. Bxc4 {[%emt 0:00:14]} dxc4 {[%emt 0:01:57]} 21. exf6 {[%emt 0:02:53]} gxf6 {[%emt 0:00:54]} 22. Qe2 {[%emt 0:00:39]} Nd5 {[%emt 0:05:42]} 23. Nd2 {[%emt 0:02:19]} Bd7 {[%emt 0:07:45]} 24. Nde4 {[%emt 0:05:27]} Qc6 {[%emt 0:01:15]} 25. Nc5 {[%emt 0:02:27]} Be7 {[%emt 0:04:48]} 26. O-O-O {[%emt 0:02:24]} b6 {[%emt 0:00:44]} 27. Nxd7 {[%emt 0:01:05]} Qxd7 {[%emt 0:00:03]} 28. f5 {[%emt 0:00:08]} Nxc3 {[%emt 0:02:11]} 29. Bxc3 {[%emt 0:00:01]} exf5 {[%emt 0:00:13]} 30. Rdf1 {[%emt 0:02:42]} Rae8 {[%emt 0:00:21]} 31. Qc2 {[%emt 0:00:13]} Bd8 {[%emt 0:00:51]} 32. Rxf5 {[%emt 0:00:39]} Re3 {[%emt 0:00:35]} 33. d5 {[%emt 0:00:59]} Rfe8 {[%emt 0:01:09]} 34. Qb2 {[%emt 0:03:53]} Kg8 {[%emt 0:01:46]} 35. g4 {[%emt 0:04:21]} h6 {[%emt 0:05:19]} 36. Bxf6 {[%emt 0:11:11]} Re1+ {[%emt 0:08:05]} 37. Rxe1 {[%emt 0:00:09]} Rxe1+ {[%emt 0:00:02]} 38. Kd2 {[%emt 0:00:02]} Qe8 {[%emt 0:00:16]} 39. Be5 {[%emt 0:02:14]} Re4 {[%emt 0:00:13]} 40. Qc3 {[%emt 0:00:00]} Bg5+ {[%emt 0:00:00]} 41. Kc2 {[%emt 0:03:19]} Rxg4 {[%emt 0:03:09]} 42. Qf3 {[%emt 0:04:04]} Rg1 {[%emt 0:00:18]} 43. d6 {[%emt 0:03:43]} Rc1+ {[%emt 0:19:30]} 44. Kb2 {[%emt 0:00:06]} Re1 {[%emt 0:00:59]} 45. Qd5+ {[%emt 0:00:31]} Kh7 {[%emt 0:00:07]} 46. Rf7+ {[%emt 0:00:26]} Kg6 {[%emt 0:00:06]} 47. Rg7+ {[%emt 0:00:02]} Kf5 {[%emt 0:00:19]} 48. Bc3+ {[%emt 0:00:27]} Kg4 {[%emt 0:00:59]} 49. Qg2+ {[%emt 0:00:10]} Kf5 {[%emt 0:00:39]} 50. Qf2+ {[%emt 0:02:07]} Bf4 {[%emt 0:00:07]} 51. Qxe1 {[%emt 0:00:07]} Qxe1 {[%emt 0:00:26]} 52. Bxe1 {[%emt 0:00:02]} Be5+ {[%emt 0:00:06]} 53. Bc3 1-0

[Event "5th EKA IIFL Investment 2019"]
[Site "Mumbai"]
[Date "2020.01.05"]
[Round "7.38"]
[White "Pranav, Shetty"]
[Black "Rathnakaran, K.."]
[Result "0-1"]
[ECO "C11"]
[WhiteElo "2185"]
[BlackElo "2329"]
[Annotator "NA"]
[PlyCount "78"]
[EventDate "2019.12.30"]
[EventType "swiss"]
[EventCountry "IND"]
[SourceTitle "playchess.com"]
[Source "ChessBase"]
[SourceQuality "1"]
[TimeControl "40/5400+30:1800+30"]

1. e4 {[%emt 0:00:00]} e6 {[%emt 0:00:00]} 2. d4 {[%emt 0:00:00]} d5 {[%emt 0:00:00]} 3. Nc3 {[%emt 0:00:00]} Nf6 {[%emt 0:00:00]} 4. e5 {[%emt 0:00:11]} Nfd7 {[%emt 0:00:00]} 5. Nce2 {[%emt 0:00:15]} c5 {[%emt 0:00:03]} 6. c3 {[%emt 0:00:05]} Nc6 {[%emt 0:00:07]} 7. Nf3 {[%emt 0:00:04]} b6 {[%emt 0:00:28]} 8. Nf4 {[%emt 0:08:53]} Bb7 {[%emt 0:00:09]} 9. h4 {[%emt 0:00:47]} h6 {[%emt 0:00:19]} 10. Bd3 {[%emt 0:08:17]} Qe7 {[%emt 0:00:11]} 11. a3 {[%emt 0:01:21]} c4 {[%emt 0:00:51]} 12. Bc2 {[%emt 0:01:08]} O-O-O {[%emt 0:00:07]} 13. Be3 {[%emt 0:09:47]} Na5 {[%emt 0:00:14]} 14. a4 {[%emt 0:01:37]} Kb8 {[%emt 0:00:07]} 15. h5 {[%emt 0:00:46]} Rc8 {[%emt 0:00:08]} 16. O-O {[%emt 0:05:50]} Qe8 {[%emt 0:00:39]} 17. Nd2 {[%emt 0:04:23]} Be7 {[%emt 0:00:31]} 18. Qg4 {[%emt 0:00:30]} Ka8 {[%emt 0:04:30]} 19. Rfe1 {[%emt 0:04:27]} Qg8 {[%emt 0:01:36]} 20. f3 {[%emt 0:04:30]} Nf8 {[%emt 0:00:07]} 21. Bf2 {[%emt 0:02:09]} Rc7 {[%emt 0:00:23]} 22. Bh4 {[%emt 0:15:41]} Bxh4 {[%emt 0:01:50]} 23. Qxh4 {[%emt 0:00:02]} g5 {[%emt 0:00:59]} 24. hxg6 {[%emt 0:00:04]} Nxg6 {[%emt 0:02:25]} 25. Qf6 {[%emt 0:02:02]} Nxf4 {[%emt 0:00:32]} 26. Qxf4 {[%emt 0:00:02]} Bc8 {[%emt 0:01:13]} 27. Kf2 {[%emt 0:00:31]} f5 {[%emt 0:00:42]} 28. exf6 {[%emt 0:00:32]} Rf7 {[%emt 0:00:05]} 29. b3 {[%emt 0:08:48]} cxb3 {[%emt 0:01:28]} 30. Nxb3 {[%emt 0:00:02]} Nxb3 {[%emt 0:00:22]} 31. Bxb3 {[%emt 0:00:01]} Qg6 {[%emt 0:00:11]} 32. a5 {[%emt 0:12:28]} Rg8 {[%emt 0:00:38]} 33. Qh2 {[%emt 0:06:19]} Qd3 {[%emt 0:02:43]} 34. Qxh6 {[%emt 0:01:16]} Rh7 {[%emt 0:00:06]} 35. f7 {[%emt 0:00:55]} Rxg2+ {[%emt 0:01:02]} 36. Kxg2 {[%emt 0:00:11]} Rxh6 {[%emt 0:00:05]} 37. Bxd5+ {[%emt 0:04:00]} exd5 {[%emt 0:00:52]} 38. Re8 {[%emt 0:00:14]} Qg6+ {[%emt 0:01:14]} 39. Kf2 {[%emt 0:00:05]} Rh2+ {[%emt 0:00:07]} 0-1

[Event "5th EKA IIFL Investment 2019"]
[Site "Mumbai"]
[Date "2020.01.05"]
[Round "7.39"]
[White "Pranav Anand"]
[Black "Barath Kalyan M"]
[Result "1-0"]
[ECO "E16"]
[WhiteElo "2309"]
[BlackElo "2091"]
[Annotator "ChessBase"]
[PlyCount "159"]
[EventDate "2019.12.30"]
[EventType "swiss"]
[EventCountry "IND"]
[SourceTitle "playchess.com"]
[Source "ChessBase"]
[SourceQuality "1"]
[TimeControl "40/5400+30:1800+30"]

1. d4 {[%emt 0:00:00]} Nf6 {[%emt 0:01:43]} 2. c4 {[%emt 0:00:00]} e6 {[%emt 0:00:06]} 3. Nf3 {[%emt 0:00:00]} Bb4+ {[%emt 0:00:38]} 4. Bd2 {[%emt 0:00:00]} Qe7 {[%emt 0:00:08]} 5. g3 {[%emt 0:00:10]} Nc6 {[%emt 0:00:47]} 6. Nc3 {[%emt 0:00:17]} Bxc3 {[%emt 0:00:59]} 7. Bxc3 {[%emt 0:00:05]} Ne4 {[%emt 0:01:06]} 8. Rc1 {[%emt 0:00:06]} Nxc3 {[%emt 0:01:33]} 9. Rxc3 {[%emt 0:00:02]} d6 {[%emt 0:00:15]} 10. d5 {[%emt 0:05:34]} Nd8 {[%emt 0:03:23]} 11. Bg2 {[%emt 0:06:38]} e5 {[%emt 0:01:48]} 12. O-O {[%emt 0:00:09]} a5 {[%emt 0:00:25]} 13. c5 {[%emt 0:01:54]} Bf5 {[%emt 0:16:23]} 14. cxd6 {[%emt 0:14:04]} cxd6 {[%emt 0:00:15]} 15. Qb3 {[%emt 0:03:23]} O-O {[%emt 0:01:44]} 16. Rfc1 {[%emt 0:00:16]} Qe8 {[%emt 0:02:28]} 17. Nh4 {[%emt 0:17:38]} Bg4 18. e4 {[%emt 0:00:54]} b5 {[%emt 0:03:05]} 19. Rc7 {[%emt 0:02:14]} Rb8 {[%emt 0:02:29]} 20. Qe3 {[%emt 0:09:28]} Nb7 {[%emt 0:23:29]} 21. Qg5 {[%emt 0:11:23]} Bd7 {[%emt 0:01:22]} 22. Nf5 {[%emt 0:00:11]} Bxf5 {[%emt 0:00:49]} 23. Qxf5 {[%emt 0:01:37]} Nc5 {[%emt 0:00:53]} 24. Rc6 {[%emt 0:08:57]} Qe7 {[%emt 0:02:47]} 25. Bh3 {[%emt 0:01:14]} g6 {[%emt 0:01:37]} 26. Qf3 {[%emt 0:00:06]} Rfd8 {[%emt 0:06:27]} 27. Qe3 {[%emt 0:00:42]} Rb7 {[%emt 0:05:41]} 28. R1xc5 {[%emt 0:02:36]} dxc5 {[%emt 0:00:33]} 29. Rxc5 {[%emt 0:00:02]} a4 {[%emt 0:02:04]} 30. Qc1 {[%emt 0:03:33]} b4 {[%emt 0:03:19]} 31. Kg2 {[%emt 0:01:07]} a3 {[%emt 0:01:32]} 32. b3 {[%emt 0:02:26]} Kg7 {[%emt 0:01:35]} 33. Bc8 {[%emt 0:01:04]} Ra7 {[%emt 0:01:08]} 34. Qc4 {[%emt 0:00:42]} h5 {[%emt 0:00:42]} 35. h4 {[%emt 0:02:40]} Kh7 {[%emt 0:02:08]} 36. Rc6 {[%emt 0:01:07]} Rd6 {[%emt 0:02:20]} 37. Qxb4 Rd8 {[%emt 0:07:21]} 38. d6 {[%emt 0:02:25]} Qf6 {[%emt 0:02:32]} 39. Qc5 {[%emt 0:00:13]} Rad7 {[%emt 0:01:12]} 40. Bxd7 {[%emt 0:00:00]} Rxd7 {[%emt 0:00:00]} 41. Rc7 {[%emt 0:02:24]} Rd8 {[%emt 0:00:49]} 42. Qxa3 {[%emt 0:00:34]} Kg7 {[%emt 0:00:17]} 43. d7 {[%emt 0:00:24]} Qe6 {[%emt 0:03:06]} 44. Qc5 {[%emt 0:01:55]} Rxd7 {[%emt 0:07:16]} 45. Rxd7 {[%emt 0:00:33]} Qxd7 {[%emt 0:00:03]} 46. Qxe5+ {[%emt 0:00:09]} Kh7 {[%emt 0:00:10]} 47. Qd5 {[%emt 0:00:07]} Qa7 {[%emt 0:00:11]} 48. a4 {[%emt 0:00:07]} f6 {[%emt 0:00:18]} 49. a5 {[%emt 0:00:09]} Qa6 {[%emt 0:00:47]} 50. Qf7+ {[%emt 0:00:18]} Kh6 {[%emt 0:00:08]} 51. b4 {[%emt 0:00:37]} g5 {[%emt 0:00:59]} 52. hxg5+ {[%emt 0:00:50]} fxg5 {[%emt 0:00:06]} 53. Qc7 {[%emt 0:00:12]} Qe2 {[%emt 0:00:22]} 54. Qb6+ {[%emt 0:00:04]} Kh7 {[%emt 0:00:13]} 55. Qe3 {[%emt 0:00:20]} Qc4 {[%emt 0:00:44]} 56. Qxg5 {[%emt 0:00:20]} Qxe4+ {[%emt 0:00:11]} 57. Kh2 {[%emt 0:00:05]} Qe2 {[%emt 0:01:34]} 58. Qf4 {[%emt 0:00:15]} Kg6 {[%emt 0:00:43]} 59. Kg2 {[%emt 0:00:13]} Kh7 {[%emt 0:00:30]} 60. Qf3 {[%emt 0:00:15]} Qb5 {[%emt 0:00:13]} 61. Qe4+ {[%emt 0:00:54]} Kg7 {[%emt 0:00:19]} 62. Qe7+ {[%emt 0:00:32]} Kh8 {[%emt 0:02:25]} 63. Qd8+ {[%emt 0:00:20]} Kh7 {[%emt 0:00:16]} 64. Qc7+ {[%emt 0:00:05]} Kh8 {[%emt 0:00:14]} 65. Qc8+ {[%emt 0:02:08]} Kg7 {[%emt 0:00:22]} 66. a6 {[%emt 0:00:27]} Qd5+ {[%emt 0:00:13]} 67. Kh2 {[%emt 0:00:07]} Qa2 {[%emt 0:02:08]} 68. Qb7+ {[%emt 0:01:03]} Kh6 {[%emt 0:00:11]} 69. Kg2 {[%emt 0:00:28]} h4 {[%emt 0:00:11]} 70. a7 {[%emt 0:02:49]} hxg3 {[%emt 0:00:10]} 71. Kxg3 {[%emt 0:00:04]} Qg8+ {[%emt 0:00:42]} 72. Kh2 {[%emt 0:00:11]} Qg4 {[%emt 0:01:12]} 73. Qc6+ {[%emt 0:01:20]} Kh7 {[%emt 0:00:19]} 74. Qc7+ {[%emt 0:00:20]} Kh6 {[%emt 0:00:12]} 75. Qd6+ Kh7 {[%emt 0:00:15]} 76. Qd3+ {[%emt 0:01:35]} Kg7 {[%emt 0:01:34]} 77. Qg3 {[%emt 0:00:07]} Qxg3+ {[%emt 0:00:15]} 78. Kxg3 {[%emt 0:00:07]} Kh7 {[%emt 0:00:08]} 79. a8=Q {[%emt 0:00:05]} Kg7 {[%emt 0:00:05]} 80. Qe8 {[%emt 0:00:05]} 1-0

[Event "5th EKA IIFL Investment 2019"]
[Site "Mumbai"]
[Date "2020.01.05"]
[Round "7.40"]
[White "Parnali, S Dharia"]
[Black "Rohith Krishna S"]
[Result "1/2-1/2"]
[ECO "A40"]
[WhiteElo "2183"]
[BlackElo "2289"]
[Annotator "NA"]
[PlyCount "80"]
[EventDate "2019.12.30"]
[EventType "swiss"]
[EventCountry "IND"]
[SourceTitle "playchess.com"]
[Source "ChessBase"]
[SourceQuality "1"]
[TimeControl "40/5400+30:1800+30"]

1. d4 {[%emt 0:00:00]} Nf6 {[%emt 0:01:20]} 2. c4 {[%emt 0:00:00]} e6 {[%emt 0:00:45]} 3. g3 {[%emt 0:00:00]} d5 {[%emt 0:00:22]} 4. Nf3 {[%emt 0:00:00]} c6 {[%emt 0:01:18]} 5. Qc2 {[%emt 0:01:23]} Be7 {[%emt 0:02:08]} 6. Bg2 {[%emt 0:00:06]} O-O {[%emt 0:00:05]} 7. O-O {[%emt 0:00:04]} b6 {[%emt 0:00:16]} 8. Nbd2 {[%emt 0:00:38]} Bb7 {[%emt 0:00:06]} 9. e4 {[%emt 0:01:46]} dxe4 {[%emt 0:00:08]} 10. Nxe4 {[%emt 0:00:05]} Nbd7 {[%emt 0:00:33]} 11. Rd1 {[%emt 0:00:48]} Qc8 {[%emt 0:02:26]} 12. Bf4 {[%emt 0:06:36]} Nxe4 {[%emt 0:00:12]} 13. Qxe4 {[%emt 0:00:05]} Nf6 {[%emt 0:09:45]} 14. Qe2 {[%emt 0:01:26]} Re8 {[%emt 0:00:51]} 15. Bh3 {[%emt 0:04:22]} Bf8 {[%emt 0:02:08]} 16. Rac1 {[%emt 0:00:34]} Qd8 {[%emt 0:02:24]} 17. Ne5 {[%emt 0:02:37]} Qe7 {[%emt 0:01:12]} 18. Bg2 {[%emt 0:05:00]} Rac8 {[%emt 0:00:25]} 19. Qf3 {[%emt 0:04:41]} Red8 {[%emt 0:01:22]} 20. a3 {[%emt 0:05:16]} Nd7 {[%emt 0:09:42]} 21. b4 {[%emt 0:04:53]} Nxe5 {[%emt 0:04:08]} 22. dxe5 {[%emt 0:03:06]} Rxd1+ {[%emt 0:00:57]} 23. Rxd1 {[%emt 0:01:43]} Ba8 {[%emt 0:01:13]} 24. Qc3 {[%emt 0:06:06]} c5 {[%emt 0:00:42]} 25. b5 {[%emt 0:00:48]} Bxg2 {[%emt 0:00:14]} 26. Kxg2 {[%emt 0:00:06]} Rd8 {[%emt 0:01:46]} 27. Rxd8 {[%emt 0:02:40]} Qxd8 {[%emt 0:00:10]} 28. Qd2 {[%emt 0:00:23]} Qxd2 {[%emt 0:00:20]} 29. Bxd2 {[%emt 0:00:05]} f5 {[%emt 0:00:25]} 30. a4 {[%emt 0:02:43]} Be7 {[%emt 0:00:18]} 31. h4 {[%emt 0:00:19]} h5 {[%emt 0:02:14]} 32. Kf3 {[%emt 0:01:10]} Kf7 {[%emt 0:00:06]} 33. Ke2 {[%emt 0:00:08]} Bd8 {[%emt 0:00:15]} 34. Kd3 {[%emt 0:00:20]} Be7 35. f4 {[%emt 0:00:21]} g6 {[%emt 0:00:43]} 36. Kc2 {[%emt 0:00:51]} Ke8 {[%emt 0:00:06]} 37. Kb3 {[%emt 0:00:35]} Kd7 {[%emt 0:00:06]} 38. a5 {[%emt 0:00:22]} Kc7 {[%emt 0:00:12]} 39. a6 {[%emt 0:00:37]} Kd7 40. Kc2 {[%emt 0:00:00]} Ke8 {[%emt 0:00:00]} 1/2-1/2